Workbook

Sheet NettenBrüte
C2: Netten Brüte ücret hesaplaması | E2: 20
C3: 7349 Sayılı Kanunla ve 319 Seri Nolu GVK Tebliğ ile Uyumlu | E3: 25
C4: Veriler | E4: Lütfen seçiminlerinizi yapınız
C5: Çalışan / Ücret türünü seçiniz | E5: İmalat Sektörü Harici NORMAL Çalışan
E6: 1
C7: Çalışan zorunlu BES kapsamında mı? | E7: Hayır
E8: 1
C9: Cari aya devreden kümülatif Asgari Ücret Gelir Vergisi matrahı | E9: 0
C10: Cari aya devreden kümülatif Gelir Vergisi matrahı | E10: 0
C11: Hesaplama yaptırılacak BAŞLANGIÇ AYINI seçiniz | E11: Ocak
C12: Beş (4/5) Puanlık SGP İşveren İndiriminden Yararlanıyor musunuz? | E12: Evet, yararlanıyoruz
C14: Aylar | E14: Ocak | F14: Şubat | G14: Mart | H14: Nisan | I14: Mayıs | J14: Haziran | K14: Temmuz | L14: Ağustos | M14: Eylül | N14: Ekim | O14: Kasım | P14: Aralık | Q14: TOPLAM | R14: Aylık Ortalama
C15: Çalışanın (tam) Aylık BRÜT ÜCRETİNİ yazınız | E15: 0 | F15: 0 | G15: 0 | H15: 0 | I15: 0 | J15: 0 | K15: 0 | L15: 0 | M15: 0 | N15: 0 | O15: 0 | P15: 0 | R15: =AVERAGE(E15:P15) -> 0
C16: Ay içinde çalıştığı gün sayısını belirleyiniz (tam ay çalışıldı ise yandaki günler geçerlidir) | E16: 31 | F16: 28 | G16: 31 | H16: 30 | I16: 31 | J16: 30 | K16: 31 | L16: 31 | M16: 30 | N16: 31 | O16: 30 | P16: 31 | Q16: 365 | R16: =AVERAGE(E16:P16) -> 30.41666667
C17: Çalıştığı günlere isabet eden NET ÜCRETİ | R17: =AVERAGE(E17:P17) -> 
R18: =IFERROR(AVERAGE(E18:P18),"") -> 
C19: Zorunlu Bireysel Emeklilik Primi (BES) (-) | R19: =AVERAGE(E19:P19) -> 
C20: Sosyal güvenlik primi İŞÇİ payı (-) | R20: =AVERAGE(E20:P20) -> 
C21: İşsizlik sigortası İŞÇİ payı (-) | R21: =AVERAGE(E21:P21) -> 
C22: Damga vergisi (-) | R22: =AVERAGE(E22:P22) -> 
C23: Gelir vergisi (-) | R23: =AVERAGE(E23:P23) -> 
C24: Çalışanının BRÜT ÜCRETİ | R24: =AVERAGE(E24:P24) -> 
C25: İşsizlik sigortası İŞVEREN payı | R25: =AVERAGE(E25:P25) -> 
C26: Sosyal güvenlik primi İŞVEREN payı | R26: =AVERAGE(E26:P26) -> 
C27: Çalışanının İŞVERENE TOPLAM MALİYETİ | R27: =AVERAGE(E27:P27) -> 
C29: ÖDENECEK NET ÜCRET | R29: =AVERAGE(E29:P29) -> 
C31: Hesaplama detay bilgileri
C32: Bu ayın SGP matrahı
C33: 5 Puanlık SG Primi indirim tutarı
C34: Cari aya devreden kümülatif Gelir Vergisi matrahı
C35: Cari ayın Gelir Vergisi matrahı
C36: Birikmiş Gelir Vergisi Matrahı
C41: Cari aya Devreden Asgari Ücretin Gelir Vergisi Matrahı
C42: Cari ayın Asgari Ücretin Gelir Vergisi Matrahı
C43: Birikimli Asgari Ücretin Gelir Vergisi Matrahı
C45: Cari Ayın Hesaplanan Gelir Vergisi
C46: Sakatlık indirimi gelir vergisi farkı
C47: Sadece Asgari Ücretin Gelir Vergisi
C48: İstisnadan Sonra Kalan (Devlete Ödenecek) Gelir Vergisi
C50: Damga Vergisinden İstisna Asgari Ücret Tutarı
C51: Hesaplanan Normal Damga Vergisi
C52: İstisna Damga Vergisi (Asgari Ücret Üzerinden)
C53: İstisnadan Sonra Kalan (Devlete Ödenecek) Damga Vergisi

Sheet BrüttenNete
C2: Brütten Nete ücret hesaplaması | E2: 20
C3: 7349 Sayılı Kanunla ve 319 Seri Nolu GVK Tebliğ ile Uyumlu | E3: 25
C4: Veriler | E4: Lütfen seçiminlerinizi yapınız
C5: Çalışan / Ücret türünü seçiniz | E5: İmalat Sektörü Harici NORMAL Çalışan
E6: 1
C7: Çalışan zorunlu BES kapsamında mı? | E7: Hayır
E8: 1
C9: Cari aya devreden kümülatif Asgari Ücret Gelir Vergisi matrahı | E9: 0
C10: Cari aya devreden kümülatif Gelir Vergisi matrahı | E10: 0
C11: Hesaplama yaptırılacak BAŞLANGIÇ AYINI seçiniz | E11: Ocak
C12: Beş (4/5) Puanlık SGP İşveren İndiriminden Yararlanıyor musunuz? | E12: Evet, yararlanıyoruz
C14: Aylar | E14: Ocak | F14: Şubat | G14: Mart | H14: Nisan | I14: Mayıs | J14: Haziran | K14: Temmuz | L14: Ağustos | M14: Eylül | N14: Ekim | O14: Kasım | P14: Aralık | Q14: TOPLAM | R14: Aylık Ortalama
C15: Çalışanın (tam) Aylık BRÜT ÜCRETİNİ yazınız | E15: 0 | F15: 0 | G15: 0 | H15: 0 | I15: 0 | J15: 0 | K15: 0 | L15: 0 | M15: 0 | N15: 0 | O15: 0 | P15: 0 | R15: =AVERAGE(E15:P15) -> 0
C16: Ay içinde çalıştığı gün sayısını belirleyiniz (tam ay çalışıldı ise yandaki günler geçerlidir) | E16: 31 | F16: 28 | G16: 31 | H16: 30 | I16: 31 | J16: 30 | K16: 31 | L16: 31 | M16: 30 | N16: 31 | O16: 30 | P16: 31 | Q16: 365 | R16: =AVERAGE(E16:P16) -> 30.41666667
C17: Çalıştığı günlere isabet eden BRÜT ÜCRETİ | R17: =AVERAGE(E17:P17) -> 
R18: =IFERROR(AVERAGE(E18:P18),"") -> 
C19: Zorunlu Bireysel Emeklilik Primi (BES) (-) | R19: =AVERAGE(E19:P19) -> 
C20: Sosyal güvenlik primi İŞÇİ payı (-) | R20: =AVERAGE(E20:P20) -> 
C21: İşsizlik sigortası İŞÇİ payı (-) | R21: =AVERAGE(E21:P21) -> 
C22: Damga vergisi (-) | R22: =AVERAGE(E22:P22) -> 
C23: Gelir vergisi (-) | R23: =AVERAGE(E23:P23) -> 
C24: Çalışanının NET ÜCRETİ | E24: 0 | F24: 0 | G24: 0 | H24: 0 | I24: 0 | J24: 0 | K24: 0 | L24: 0 | M24: 0 | N24: 0 | O24: 0 | P24: 0 | R24: =AVERAGE(E24:P24) -> 0
C25: İşsizlik sigortası İŞVEREN payı | R25: =AVERAGE(E25:P25) -> 
C26: Sosyal güvenlik primi İŞVEREN payı | R26: =AVERAGE(E26:P26) -> 
C27: Çalışanının İŞVERENE TOPLAM MALİYETİ | R27: =AVERAGE(E27:P27) -> 
C29: ÖDENECEK NET ÜCRET | R29: =AVERAGE(E29:P29) -> 
C31: Hesaplama detay bilgileri
C32: Bu ayın SGP matrahı
C33: 5 Puanlık SG Primi indirim tutarı
C34: Cari aya devreden kümülatif Gelir Vergisi matrahı
C35: Cari ayın Gelir Vergisi matrahı
C36: Birikmiş Gelir Vergisi Matrahı
C41: Cari aya Devreden Asgari Ücretin Gelir Vergisi Matrahı
C42: Cari ayın Asgari Ücretin Gelir Vergisi Matrahı
C43: Birikimli Asgari Ücretin Gelir Vergisi Matrahı
C45: Cari Ayın Hesaplanan Gelir Vergisi
C46: Sakatlık indirimi gelir vergisi farkı
C47: Sadece Asgari Ücretin Gelir Vergisi
C48: İstisnadan Sonra Kalan (Devlete Ödenecek) Gelir Vergisi
C50: Damga Vergisinden İstisna Asgari Ücret Tutarı
C51: Hesaplanan Normal Damga Vergisi
C52: İstisna Damga Vergisi (Asgari Ücret Üzerinden)
C53: İstisnadan Sonra Kalan (Devlete Ödenecek) Damga Vergisi

Sheet Parametre (hidden)
C1: Netten Brüte - Brütten Nete Ücret Hesaplaması | RS1: Netten Brüte
RS2: Netten Brüte Ücret
C3: HESAPLAMA PARAMETRELERİ | E3: 2025 yılı | RS3: Netten Brüte Ücret Hesaplaması
J4: DEĞİŞTİRİLEMEZ BİLGİLER | RS4: Netten Brüte Maaş
C5: Cari Yıl Gelir Vergisi Tarifesi | J5: Çalışan Tipi | N5: İtibari hizmet süreleri | Q5: Aylar | R5: 5 Puanlık SGP İndiriminden Yararlanma Durumu | U5: Evet | RS5: Netten Brüte Maaş Hesaplaması
C6: DİLİMLER | D6: Dilim Tutar | E6: Dilim Oran | J6: İmalat Sektörü Harici NORMAL Çalışan | N6: Yok | Q6: Ocak | R6: Evet, yararlanıyoruz | U6: Hayır | RS6: Netden Brüte
C7: Birinci Dilim | D7: 158000 | E7: 0.15 | J7: İmalat Sektöründeki NORMAL Çalışan | N7: 60 Gün | Q7: Şubat | R7: Hayır, yararlanmıyoruz | RS7: NettenBrüte
C8: İkinci Dilim | D8: 330000 | E8: 0.2 | J8: Emekli Çalışan | N8: 90 Gün | Q8: Mart | RS8: netten brüte
C9: Üçüncü Dilim | D9: 1200000 | E9: 0.27 | J9: Huzur Hakkı Ücreti | N9: 180 Gün | Q9: Nisan | RS9: netden brüte
C10: Dördüncü Dilim | D10: 4300000 | E10: 0.35 | Q10: Mayıs | RS10: Netten Brüte maaş nasıl hesaplanır
C11: Beşinci Dilim | D11: =D10+0.01 -> 4300000.01 | E11: 0.4 | Q11: Haziran | RS11: Netten Brüte ücret nasıl hesaplanır
Q12: Temmuz | RS12: netten brute
Q13: Ağustos | RS13: netden brute
J14: Çalışanın çocuk sayısı | Q14: Eylül
J15: Yok | Q15: Ekim
J16: 1 | Q16: Kasım
J17: 2 | Q17: Aralık
J18: 3
J19: 4
J20: 5
J21: 6 | RS21: Brütten Nete
J22: 7 | RS22: Brütten Nete Maaş
J23: 8 | RS23: Brütten Nete Ücret
J24: 9 | RS24: Brütten Nete Ücret Hesaplaması
J25: 10 | RS25: Brütten Nete Maaş Hesaplaması
J26: 11 | RS26: Brütten Nete ücret nasıl Hesaplanır
C27: SSK Priminden İstisna Yemek, Çocuk ve Aile Zammı Tutarları | J27: 12 | RS27: Brütten Nete Maaş nasıl Hesaplanır
C28: Ödemenin Nevi | D28: İstisnanın Tespit Şekli | E28: 1.1.2009-30.06.2009 İÇİN | F28: 1.7.2009-31.12.2009 İÇİN
C29: Yemek Parası (Günlük) | D29: 16 yaşından büyükler için her yıl belirlenen günlük asgari ücretin % 6'sı | E29: =ROUND(E24*0.06,2) -> 0 | F29: =ROUND(E25*0.06,2) -> 0 | G29: x Fiilen çalışılan gün sayısı
C30: Çoçuk Zammı | D30: 16 yaşından büyükler için belirlenen aylık asgari ücretin % 2'si (en fazla 2 Çocuk için) | E30: =ROUND(F24*0.02,2) -> 0 | F30: =ROUND(F25*0.02,2) -> 0 | G30: X Çoçuk sayısı (en fazla 2 çocuk için)
C31: Aile Zammı | D31: 16 yaşından büyükler için belirlenen aylık asgari ücretin %10'u | E31: =ROUND(F24*0.1,2) -> 0 | F31: =ROUND(F25*0.1,2) -> 0
C35: Gelir Vergisinden İstisna Yemek ve Çocuk Paraları (Aylık)
C36: Ödemenin Nevi | D36: İstisnanın Tespit Şekli | E36: 1.1.2009-30.06.2009 İÇİN | F36: 1.7.2009-31.12.2009 İÇİN
C37: Yemek Parası (Günlük) | D37: YDO'na göre | E37: 10.8 | F37: 10.8
C38: Çoçuk Yardımı ( 6 yaşından büyük çocuklar için) | D38: En fazla 2 çocuk için.Devletçe verilen tutarı aşamaz | E38: 13.38 | F38: 13.98
C39: Çoçuk Yardımı (0- 6 yaş çocuklar için) | E39: =(E38*2)-0.01 -> 26.75 | F39: =F38*2 -> 27.96
T46: Sigorta Prim Oranları | AL46: Sigorta Prim Oranları
T47: Normal Çalışanlar | AL47: Emekli Çalışanlar | RS47: brütten nete
D48: ASgari Ücret & SG Prim Tabanı & Tavanı | T48: İşçi Primi Oranları | AA48: İşveren prim oranları | AL48: İşçi Prim Oranları | AO48: İşveren Prim Oranları | AT48: Genel Toplamlar
C49: Aylar | D49: Brüt Asgari Ücret (Günlük) | E49: Brüt Asgari Ücret (Aylık) | F49: Net Asgari Ücret (Günlük) | G49: Net Asgari Ücret (Aylık) | H49: SSK Prim Tabanı (Günlük) | I49: SSK Prim Tabanı (Günlük) | J49: SSK Prim Tavanı (Günlük) | K49: SSK Prim Tavanı (Aylık) | M49: Damga Vergisi Oranları | O49: Herkes için Zorunlu BES oranı | T49: Kısa vadeli sigorta kolları | U49: Malululük, yaşlılık ve ölüm | V49: Genel Sağlık Sigortası | W49: İşsizlik | X49: İNDİRİMSİZ TOPLAM | Y49: SGK İndirimi | Z49: İNDİRİMLİ TOPLAM | AA49: Kısa vadeli sigorta kolları | AB49: Malululük, yaşlılık ve ölüm | AC49: Genel Sağlık Sigortası | AD49: İşsizlik | AE49: İNDİRİMSİZ TOPLAM | AF49: SGK 81 İndirimi (Hazine Tarafından Karşılanan) | AG49: İNDİRİMLİ TOPLAM (İMALAT SEKTÖRÜ HARİCİ) | AH49: SGK 81 İndirimi (Hazine Tarafından Karşılanan) | AI49: İNDİRİMLİ TOPLAM (İMALAT SEKTÖRÜ İÇİN) | AL49: Kısa vadeli sigorta kolları | AM49: Sosyal Güvenlik Destekleme Primi | AN49: İŞÇİ TOPLAM | AO49: Kısa vadeli sigorta kolları | AP49: Sosyal Güvenlik Destekleme Primi | AQ49: İNDİRİMSİZ İŞVEREN PAYI TOPLAM | AR49: İndirim (Hazine Tarafından Karşılanan) | AS49: İNDİRİMLİ İŞVEREN PAYI TOPLAMI (TÜM SEKTÖRLER İÇİN) | AT49: İNDİRİMSİZ GENEL TOPLAM ORAN | AU49: İNDİRİMLİ GENEL TOPLAM ORAN | RS49: brütden nete
C50: Ocak | D50: 866.85 | E50: =ROUND((D50*30),2) -> 26005.5 | F50: =D50*0.85 -> 736.8225 | G50: =(ROUND((F50*30),2))-0.01 -> 22104.67 | H50: =D50 -> 866.85 | I50: =ROUND((H50*30),2) -> 26005.5 | J50: =ROUND(H50*7.5,2) -> 6501.38 | K50: =J50*30 -> 195041.4 | M50: 0.00759 | O50: 0.03 | T50: 0 | U50: 9 | V50: 5 | W50: 1 | X50: =SUM(T50:W50) -> 15 | Y50: 0 | Z50: =SUM(X50:Y50) -> 15 | AA50: 2.25 | AB50: 11 | AC50: 7.5 | AD50: 2 | AE50: =SUM(AA50:AD50) -> 22.75 | AF50: -5 | AG50: =SUM(AE50:AF50) -> 17.75 | AH50: -5 | AI50: =AE50+AH50 -> 17.75 | AL50: 0 | AM50: 7.5 | AN50: =SUM(AL50:AM50) -> 7.5 | AO50: 2.25 | AP50: 22.5 | AQ50: =SUM(AO50:AP50) -> 24.75 | AR50: 0 | AS50: =AQ50+AR50 -> 24.75 | AT50: =AN50+AQ50 -> 32.25 | AU50: =AN50+AS50 -> 32.25
C51: Şubat | D51: 866.85 | E51: =ROUND((D51*30),2) -> 26005.5 | F51: =D51*0.85 -> 736.8225 | G51: 22104.67 | H51: =D51 -> 866.85 | I51: 26005.5 | J51: =ROUND(H51*7.5,2) -> 6501.38 | K51: 195041.4 | M51: 0.00759 | O51: 0.03 | T51: 0 | U51: 9 | V51: 5 | W51: 1 | X51: 15 | Y51: 0 | Z51: 15 | AA51: 2.25 | AB51: 11 | AC51: 7.5 | AD51: 2 | AE51: 22.75 | AF51: -4 | AG51: =SUM(AE51:AF51) -> 18.75 | AH51: -5 | AI51: 17.75 | AL51: 0 | AM51: 7.5 | AN51: =SUM(AL51:AM51) -> 7.5 | AO51: 2.25 | AP51: 22.5 | AQ51: =SUM(AO51:AP51) -> 24.75 | AR51: 0 | AS51: =AQ51+AR51 -> 24.75 | AT51: =AN51+AQ51 -> 32.25 | AU51: =AN51+AS51 -> 32.25
C52: Mart | D52: 866.85 | E52: 26005.5 | F52: 736.8225 | G52: 22104.67 | H52: 866.85 | I52: 26005.5 | J52: 6501.38 | K52: 195041.4 | M52: 0.00759 | O52: 0.03 | T52: 0 | U52: 9 | V52: 5 | W52: 1 | X52: 15 | Y52: 0 | Z52: 15 | AA52: 2.25 | AB52: 11 | AC52: 7.5 | AD52: 2 | AE52: 22.75 | AF52: -4 | AG52: 18.75 | AH52: -5 | AI52: 17.75 | AL52: 0 | AM52: 7.5 | AN52: 7.5 | AO52: 2.25 | AP52: 22.5 | AQ52: 24.75 | AR52: 0 | AS52: 24.75 | AT52: 32.25 | AU52: 32.25
C53: Nisan | D53: 866.85 | E53: 26005.5 | F53: 736.8225 | G53: 22104.67 | H53: 866.85 | I53: 26005.5 | J53: 6501.38 | K53: 195041.4 | M53: 0.00759 | O53: 0.03 | T53: 0 | U53: 9 | V53: 5 | W53: 1 | X53: 15 | Y53: 0 | Z53: 15 | AA53: 2.25 | AB53: 11 | AC53: 7.5 | AD53: 2 | AE53: 22.75 | AF53: -4 | AG53: 18.75 | AH53: -5 | AI53: 17.75 | AL53: 0 | AM53: 7.5 | AN53: 7.5 | AO53: 2.25 | AP53: 22.5 | AQ53: 24.75 | AR53: 0 | AS53: 24.75 | AT53: 32.25 | AU53: 32.25
C54: Mayıs | D54: 866.85 | E54: 26005.5 | F54: 736.8225 | G54: 22104.67 | H54: 866.85 | I54: 26005.5 | J54: 6501.38 | K54: 195041.4 | M54: 0.00759 | O54: 0.03 | T54: 0 | U54: 9 | V54: 5 | W54: 1 | X54: 15 | Y54: 0 | Z54: 15 | AA54: 2.25 | AB54: 11 | AC54: 7.5 | AD54: 2 | AE54: 22.75 | AF54: -4 | AG54: 18.75 | AH54: -5 | AI54: 17.75 | AL54: 0 | AM54: 7.5 | AN54: 7.5 | AO54: 2.25 | AP54: 22.5 | AQ54: 24.75 | AR54: 0 | AS54: 24.75 | AT54: 32.25 | AU54: 32.25
C55: Haziran | D55: 866.85 | E55: 26005.5 | F55: 736.8225 | G55: 22104.67 | H55: 866.85 | I55: 26005.5 | J55: 6501.38 | K55: 195041.4 | M55: 0.00759 | O55: 0.03 | T55: 0 | U55: 9 | V55: 5 | W55: 1 | X55: 15 | Y55: 0 | Z55: 15 | AA55: 2.25 | AB55: 11 | AC55: 7.5 | AD55: 2 | AE55: 22.75 | AF55: -4 | AG55: 18.75 | AH55: -5 | AI55: 17.75 | AL55: 0 | AM55: 7.5 | AN55: 7.5 | AO55: 2.25 | AP55: 22.5 | AQ55: 24.75 | AR55: 0 | AS55: 24.75 | AT55: 32.25 | AU55: 32.25
C56: Temmuz | D56: 866.85 | E56: 26005.5 | F56: 736.8225 | G56: 22104.67 | H56: 866.85 | I56: 26005.5 | J56: 6501.38 | K56: 195041.4 | M56: 0.00759 | O56: 0.03 | T56: 0 | U56: 9 | V56: 5 | W56: 1 | X56: 15 | Y56: 0 | Z56: 15 | AA56: 2.25 | AB56: 11 | AC56: 7.5 | AD56: 2 | AE56: 22.75 | AF56: -4 | AG56: 18.75 | AH56: -5 | AI56: 17.75 | AL56: 0 | AM56: 7.5 | AN56: 7.5 | AO56: 2.25 | AP56: 22.5 | AQ56: 24.75 | AR56: 0 | AS56: 24.75 | AT56: 32.25 | AU56: 32.25
C57: Ağustos | D57: 866.85 | E57: 26005.5 | F57: 736.8225 | G57: 22104.67 | H57: 866.85 | I57: 26005.5 | J57: 6501.38 | K57: 195041.4 | M57: 0.00759 | O57: 0.03 | T57: 0 | U57: 9 | V57: 5 | W57: 1 | X57: 15 | Y57: 0 | Z57: 15 | AA57: 2.25 | AB57: 11 | AC57: 7.5 | AD57: 2 | AE57: 22.75 | AF57: -4 | AG57: 18.75 | AH57: -5 | AI57: 17.75 | AL57: 0 | AM57: 7.5 | AN57: 7.5 | AO57: 2.25 | AP57: 22.5 | AQ57: 24.75 | AR57: 0 | AS57: 24.75 | AT57: 32.25 | AU57: 32.25
C58: Eylül | D58: 866.85 | E58: 26005.5 | F58: 736.8225 | G58: 22104.67 | H58: 866.85 | I58: 26005.5 | J58: 6501.38 | K58: 195041.4 | M58: 0.00759 | O58: 0.03 | T58: 0 | U58: 9 | V58: 5 | W58: 1 | X58: 15 | Y58: 0 | Z58: 15 | AA58: 2.25 | AB58: 11 | AC58: 7.5 | AD58: 2 | AE58: 22.75 | AF58: -4 | AG58: 18.75 | AH58: -5 | AI58: 17.75 | AL58: 0 | AM58: 7.5 | AN58: 7.5 | AO58: 2.25 | AP58: 22.5 | AQ58: 24.75 | AR58: 0 | AS58: 24.75 | AT58: 32.25 | AU58: 32.25
C59: Ekim | D59: 866.85 | E59: 26005.5 | F59: 736.8225 | G59: 22104.67 | H59: 866.85 | I59: 26005.5 | J59: 6501.38 | K59: 195041.4 | M59: 0.00759 | O59: 0.03 | T59: 0 | U59: 9 | V59: 5 | W59: 1 | X59: 15 | Y59: 0 | Z59: 15 | AA59: 2.25 | AB59: 11 | AC59: 7.5 | AD59: 2 | AE59: 22.75 | AF59: -4 | AG59: 18.75 | AH59: -5 | AI59: 17.75 | AL59: 0 | AM59: 7.5 | AN59: 7.5 | AO59: 2.25 | AP59: 22.5 | AQ59: 24.75 | AR59: 0 | AS59: 24.75 | AT59: 32.25 | AU59: 32.25
C60: Kasım | D60: 866.85 | E60: 26005.5 | F60: 736.8225 | G60: 22104.67 | H60: 866.85 | I60: 26005.5 | J60: 6501.38 | K60: 195041.4 | M60: 0.00759 | O60: 0.03 | T60: 0 | U60: 9 | V60: 5 | W60: 1 | X60: 15 | Y60: 0 | Z60: 15 | AA60: 2.25 | AB60: 11 | AC60: 7.5 | AD60: 2 | AE60: 22.75 | AF60: -4 | AG60: 18.75 | AH60: -5 | AI60: 17.75 | AL60: 0 | AM60: 7.5 | AN60: 7.5 | AO60: 2.25 | AP60: 22.5 | AQ60: 24.75 | AR60: 0 | AS60: 24.75 | AT60: 32.25 | AU60: 32.25
C61: Aralık | D61: 866.85 | E61: 26005.5 | F61: 736.8225 | G61: 22104.67 | H61: 866.85 | I61: 26005.5 | J61: 6501.38 | K61: 195041.4 | M61: 0.00759 | O61: 0.03 | T61: 0 | U61: 9 | V61: 5 | W61: 1 | X61: 15 | Y61: 0 | Z61: 15 | AA61: 2.25 | AB61: 11 | AC61: 7.5 | AD61: 2 | AE61: 22.75 | AF61: -4 | AG61: 18.75 | AH61: -5 | AI61: 17.75 | AL61: 0 | AM61: 7.5 | AN61: 7.5 | AO61: 2.25 | AP61: 22.5 | AQ61: 24.75 | AR61: 0 | AS61: 24.75 | AT61: 32.25 | AU61: 32.25
R62: -5 | X62: =(ROUND((W62*30),2))-0.01 -> -0.01 | AA62: =Y62*7.5 -> 0 | AB62: =AA62*30 -> 0 | AN62: 0 | AQ62: 0
R63: -5 | X63: -0.01 | AA63: 0 | AB63: 0 | AN63: 0 | AQ63: 0
R64: -5 | X64: -0.01 | AA64: 0 | AB64: 0 | AN64: 0 | AQ64: 0
R65: -5 | X65: -0.01 | AA65: 0 | AB65: 0 | AN65: 0 | AQ65: 0
R66: -5 | X66: -0.01 | AA66: 0 | AB66: 0 | AN66: 0 | AQ66: 0
R67: -5 | X67: -0.01 | AA67: 0 | AB67: 0 | AN67: 0 | AQ67: 0
R68: -5 | X68: -0.01 | AA68: 0 | AB68: 0 | AN68: 0 | AQ68: 0
R69: -5 | X69: -0.01 | AA69: 0 | AB69: 0 | AN69: 0 | AQ69: 0
R70: -5 | X70: -0.01 | AA70: 0 | AB70: 0 | AN70: 0 | AQ70: 0
R71: -5 | X71: -0.01 | AA71: 0 | AB71: 0 | AN71: 0 | AQ71: 0
R72: -5 | X72: -0.01 | AA72: 0 | AB72: 0 | AN72: 0 | AQ72: 0
C76: Sakatlık deceleri
C77: Dereceler | D77: İndirim Tutarı
B78: 1 | C78: Yok | D78: 0
B79: 2 | C79: 1.Derece Sakat | D79: 9900
B80: 3 | C80: 2.Derece Sakat | D80: 5700
B81: 4 | C81: 3.Derece Sakat | D81: 2400
